bitfinex/quotes_BTCUSD_20260103
["timestamp","ask_amount","ask_price","bid_price","bid_amount"]
[1767413287593,0.01107199,90318.0,90312.0,0.01107272]
[1767413289217,0.01107199,90318.0,90313.0,0.0110726]
[1767413289451,0.01107186,90319.0,90314.0,0.01107248]
[1767413290381,0.01107199,90318.0,90313.0,0.0110726]
[1767413290586,0.01107199,90318.0,90312.0,0.01107272]
[1767413291435,0.01108,90321.0,90317.0,0.04888468]
[1767413291640,0.01107113,90325.0,90319.0,0.01107186]
[1767413291641,0.01107125,90324.0,90319.0,0.01107186]
[1767413291840,0.01108,90321.0,90318.0,0.000999]
[1767413292012,0.01108,90321.0,90318.0,0.01107199]
[1767413292217,0.01107125,90324.0,90319.0,0.05995654]
[1767413292655,0.01107137,90323.0,90315.0,0.01107235]
[1767413292878,0.01107162,90321.0,90316.0,0.04888468]
[1767413293157,0.01107186,90319.0,90316.0,0.04888468]
[1767413293361,0.01107149,90322.0,90316.0,0.05995691]
[1767413293573,0.01107174,90320.0,90316.0,0.04888468]
[1767413293910,0.01107162,90321.0,90316.0,0.05995691]
[1767413294726,0.01107174,90320.0,90316.0,0.04888468]
[1767413294933,0.01107162,90321.0,90316.0,0.04888468]
[1767413294934,0.01107162,90321.0,90316.0,0.05995691]
[1767413295143,0.01107174,90320.0,90316.0,0.04888468]
[1767413295342,0.01107162,90321.0,90316.0,0.05995691]
[1767413295750,0.01107174,90320.0,90316.0,0.04888468]
[1767413296108,0.01107162,90321.0,90316.0,0.05995691]
[1767413296312,0.01107149,90322.0,90317.0,0.01107211]
[1767413296458,0.01107149,90322.0,90316.0,0.04888468]
[1767413296655,0.01107162,90321.0,90316.0,0.05995691]
[1767413297790,0.01107174,90320.0,90316.0,0.04888468]
[1767413297994,0.01107149,90322.0,90316.0,0.04888468]
[1767413298552,0.01107162,90321.0,90317.0,0.01107211]
[1767413298729,0.01107162,90321.0,90316.0,0.05995691]
[1767413299589,0.01107137,90323.0,90317.0,0.01107211]
[1767413300396,0.01107149,90322.0,90317.0,0.01107211]
[1767413301266,0.01107149,90322.0,90318.0,0.01107199]
[1767413301468,0.01107149,90322.0,90317.0,0.01107211]
[1767413301819,0.01107125,90324.0,90318.0,0.01107199]
[1767413302020,0.01107137,90323.0,90318.0,0.01107199]
[1767413302335,0.01107149,90322.0,90317.0,0.01107211]
[1767413303188,0.01107149,90322.0,90316.0,0.05995691]
[1767413303391,0.01107149,90322.0,90316.0,0.01107223]
[1767413303598,0.01107137,90323.0,90318.0,0.01107199]
[1767413303745,0.01107149,90322.0,90316.0,0.01107223]
[1767413303941,0.01107162,90321.0,90316.0,0.01107223]
[1767413304541,0.01107149,90322.0,90317.0,0.01107211]
[1767413304731,0.01107149,90322.0,90318.0,0.01107199]
[1767413304928,0.01107137,90323.0,90316.0,0.01107223]
[1767413305351,0.01107149,90322.0,90316.0,0.01107223]
[1767413305957,0.06642811,90324.0,90317.0,0.01107211]
[1767413306192,0.01107149,90322.0,90317.0,0.01107211]
[1767413306388,0.01107137,90323.0,90318.0,0.01107199]
[1767413307181,0.01107149,90322.0,90316.0,0.01107223]
[1767413307611,0.01107149,90322.0,90317.0,0.01107211]
[1767413308674,0.01107137,90323.0,90318.0,0.01107199]
[1767413309866,0.01107149,90322.0,90317.0,0.01107211]
[1767413310012,0.06642866,90323.0,90316.0,0.01107223]
[1767413310211,0.01107149,90322.0,90316.0,0.01107223]
[1767413311011,0.01107174,90320.0,90311.0,0.05995752]
[1767413311196,0.01107186,90319.0,90314.0,0.01107248]
[1767413311396,0.06643085,90320.0,90310.0,0.02215297]
[1767413311397,0.01107223,90316.0,90310.0,0.02215297]
[1767413311643,0.01107174,90320.0,90310.0,0.02215297]
[1767413311644,0.01107211,90317.0,90312.0,0.01107272]
[1767413313266,0.01107174,90320.0,90317.0,0.000999]
[1767413313478,0.01107186,90319.0,90317.0,0.000999]
[1767413313698,0.01107186,90319.0,90314.0,0.01107248]
[1767413314515,0.01107199,90318.0,90312.0,0.06098132]
[1767413314722,0.01107186,90319.0,90314.0,0.01107248]
[1767413314931,0.01102987,90320.0,90314.0,0.01107248]
[1767413315516,0.01107186,90319.0,90314.0,0.01107248]
[1767413315671,0.01102987,90320.0,90315.0,0.01107235]
[1767413316278,0.01107162,90321.0,90316.0,0.01107223]
[1767413316582,0.01107174,90320.0,90315.0,0.01107235]
[1767413317222,0.01107174,90320.0,90314.0,0.06643439]
[1767413317223,0.01107186,90319.0,90314.0,0.01107248]
[1767413317419,0.01107174,90320.0,90315.0,0.01107235]
[1767413317653,0.01107174,90320.0,90314.0,0.01107248]
[1767413317855,0.01107199,90318.0,90310.0,0.02215297]
[1767413318008,0.01107211,90317.0,90312.0,0.01107272]
[1767413318175,0.01107199,90318.0,90313.0,0.0110726]
[1767413318578,0.01107199,90318.0,90314.0,0.01107248]
[1767413318830,0.06040534,90318.0,90308.0,0.06643886]
[1767413318988,0.01107284,90311.0,90307.0,0.01107333]
[1767413319193,0.01107284,90311.0,90306.0,0.02215346]
[1767413319444,0.01107309,90309.0,90306.0,0.01108]
[1767413319983,0.01107297,90310.0,90306.0,0.01108]
[1767413320237,0.01107309,90309.0,90306.0,0.01108]
[1767413321007,0.01107297,90310.0,90305.0,0.01107358]
[1767413321432,0.01107297,90310.0,90303.0,0.06644244]
[1767413321609,0.0110737,90304.0,90298.0,0.01107444]
[1767413322164,0.01107333,90307.0,90298.0,0.01107444]
[1767413322165,0.01107346,90306.0,90301.0,0.01107407]
[1767413322400,0.01107346,90306.0,90302.0,0.01107395]
[1767413322601,0.06643897,90309.0,90301.0,0.01107407]
[1767413322719,0.01107346,90306.0,90301.0,0.01107407]
[1767413323427,0.01107358,90305.0,90300.0,0.01107419]
[1767413323968,0.01107321,90308.0,90300.0,0.01107419]
[1767413324173,0.01107358,90305.0,90298.0,0.05537216]
[1767413324484,0.01107358,90305.0,90300.0,0.01107419]
[1767413324834,0.01107358,90305.0,90298.0,0.01107444]
[1767413325425,0.01107358,90305.0,90299.0,0.01107431]
[1767413325833,0.01107358,90305.0,90300.0,0.01107419]
[1767413325974,0.0110737,90304.0,90298.0,0.01107444]
[1767413326380,0.0110737,90304.0,90299.0,0.01107431]
[1767413326594,0.01107382,90303.0,90298.0,0.01107444]
[1767413326999,0.0110737,90304.0,90298.0,0.01107444]
[1767413327316,0.0110737,90304.0,90296.0,0.06644759]
[1767413327317,0.01107395,90302.0,90297.0,0.01107456]
[1767413327529,0.01107395,90302.0,90298.0,0.01107444]
[1767413327699,0.01107395,90302.0,90297.0,0.01107456]
[1767413327884,0.01107382,90303.0,90298.0,0.01107444]
[1767413328079,0.01107395,90302.0,90298.0,0.01107444]
[1767413328305,0.01107382,90303.0,90298.0,0.01107444]
[1767413328506,0.01107358,90305.0,90298.0,0.01107444]
[1767413328937,0.0110737,90304.0,90298.0,0.01107444]
[1767413329465,0.01107358,90305.0,90300.0,0.01107419]
[1767413329593,0.01107333,90307.0,90299.0,0.01107431]
[1767413329793,0.01107346,90306.0,90300.0,0.01107419]
[1767413330269,0.01107333,90307.0,90306.0,0.000999]
[1767413330472,0.02215297,90310.0,90306.0,0.000999]
[1767413330650,0.06643855,90309.0,90306.0,0.000999]
[1767413330798,0.06643855,90309.0,90301.0,0.01107407]
[1767413330799,0.01107333,90307.0,90302.0,0.01107395]
[1767413331553,0.01107333,90307.0,90303.0,0.01107382]
[1767413331693,0.01107333,90307.0,90302.0,0.01107395]
[1767413331894,0.01107333,90307.0,90303.0,0.01107382]
[1767413332145,0.01107321,90308.0,90304.0,0.0110737]
[1767413333152,0.06643855,90309.0,90303.0,0.01107382]
[1767413333654,0.02215297,90310.0,90309.0,0.000999]
[1767413333876,0.02215297,90310.0,90305.0,0.01107358]
[1767413334046,0.01108,90310.0,90306.0,0.01107346]
[1767413334687,0.010081,90310.0,90306.0,0.01107346]
[1767413335092,0.010081,90310.0,90305.0,0.01107358]
[1767413335248,0.010081,90310.0,90306.0,0.01107346]
[1767413335879,0.010081,90310.0,90307.0,0.01107333]
[1767413337038,0.010081,90310.0,90301.0,0.01107407]
[1767413337039,0.000999,90307.0,90301.0,0.01107407]
[1767413337366,0.000999,90307.0,90302.0,0.01107395]
[1767413337574,0.01107333,90307.0,90301.0,0.01107407]
[1767413337792,0.01107321,90308.0,90303.0,0.01107382]
[1767413337994,0.01107309,90309.0,90304.0,0.0110737]
[1767413338195,0.010081,90310.0,90303.0,0.01107382]
[1767413338372,0.01108,90309.0,90307.0,0.01107333]
[1767413340282,0.000999,90307.0,90306.0,0.01107346]
[1767413340666,0.01108,90309.0,90306.0,0.01107346]
[1767413342326,0.01108,90309.0,90307.0,0.05536625]
[1767413342686,0.04659251,90316.0,90312.0,0.01107272]
[1767413342892,0.01108,90317.0,90314.0,0.01107248]
[1767413343905,0.01108,90317.0,90313.0,0.06643505]
[1767413343906,0.01108,90317.0,90313.0,0.0110726]
[1767413344131,0.01108,90317.0,90314.0,0.01107248]
[1767413344331,0.06642721,90325.0,90318.0,0.01107199]
[1767413344536,0.01108,90324.0,90320.0,0.01107174]
[1767413344976,0.01118794,90326.0,90323.0,0.01107137]
[1767413345246,0.01118794,90326.0,90323.0,0.0654291]
[1767413345650,0.01118794,90326.0,90324.0,0.05535577]
[1767413346173,0.04659251,90325.0,90323.0,0.04699662]
[1767413346322,0.01118794,90326.0,90324.0,0.04967632]
[1767413348743,0.01118794,90326.0,90325.0,0.10503198]
[1767413349355,0.01118794,90326.0,90325.0,0.04967632]
[1767413350633,0.01118794,90326.0,90322.0,0.04967632]
[1767413350634,0.02225894,90326.0,90322.0,0.04967632]
[1767413350834,0.01118794,90326.0,90322.0,0.06074781]
[1767413351075,0.02225894,90326.0,90322.0,0.04967632]
[1767413351679,0.01118794,90326.0,90323.0,0.04967632]
[1767413351996,0.01118794,90326.0,90323.0,0.06074769]
[1767413352197,0.01118794,90326.0,90323.0,0.11610412]
[1767413352597,0.01118794,90326.0,90323.0,0.06074769]
[1767413353101,0.01118794,90326.0,90324.0,0.05535627]
[1767413353445,0.01118794,90326.0,90323.0,0.06074769]
[1767413354401,0.06642064,90334.0,90327.0,0.01107088]
[1767413354577,0.01108,90333.0,90327.0,0.01107088]
[1767413354781,0.06647638,90334.0,90327.0,0.01107088]
[1767413354981,0.01108,90333.0,90327.0,0.01107088]
[1767413355190,0.01107027,90332.0,90326.0,0.06074732]
[1767413355399,0.02215027,90332.0,90327.0,0.01107088]
[1767413356175,0.01118794,90331.0,90328.0,0.01107076]
[1767413356370,0.01108,90332.0,90328.0,0.01107076]
[1767413356604,0.01108,90332.0,90327.0,0.01107088]
[1767413356605,0.02215027,90332.0,90327.0,0.01107088]
[1767413356808,0.01107027,90332.0,90327.0,0.0607472]
[1767413357004,0.01108,90331.0,90329.0,0.04967632]
[1767413357784,0.01108,90331.0,90329.0,0.04903569]
[1767413357991,0.01107064,90329.0,90324.0,0.06074757]
[1767413359258,0.01107064,90329.0,90324.0,0.04967632]
[1767413359455,0.01107064,90329.0,90321.0,0.06642973]
[1767413359658,0.01107064,90329.0,90322.0,0.01107149]
[1767413359823,0.06642436,90329.0,90320.0,0.2540013]
[1767413360020,0.04659251,90329.0,90310.0,0.02215297]
[1767413360246,0.01107235,90315.0,90309.0,0.01108]
[1767413360487,0.01107272,90312.0,90309.0,0.06075632]
[1767413360603,0.0110726,90313.0,90312.0,0.000999]
[1767413360805,0.01107272,90312.0,90309.0,0.06075632]
[1767413361060,0.0110726,90313.0,90309.0,0.06075632]
[1767413361443,0.06643529,90314.0,90309.0,0.06075632]
[1767413361444,0.01107248,90314.0,90309.0,0.06075632]
[1767413361778,0.01107235,90315.0,90309.0,0.07182941]
[1767413362059,0.01107223,90316.0,90309.0,0.07182941]
[1767413362288,0.01107223,90316.0,90315.0,0.000999]
[1767413362561,0.0110726,90313.0,90309.0,0.06075632]
[1767413362865,0.01107248,90314.0,90309.0,0.07182941]
[1767413363271,0.01007348,90314.0,90309.0,0.07182941]
[1767413363465,0.01107235,90315.0,90309.0,0.07182941]
[1767413363466,0.01107235,90315.0,90310.0,0.01107297]
[1767413363688,0.01107223,90316.0,90311.0,0.01107284]
[1767413364634,0.01107235,90315.0,90310.0,0.01107297]
[1767413364834,0.01107223,90316.0,90311.0,0.01107284]
[1767413367403,0.01107235,90315.0,90310.0,0.01107297]
[1767413367804,0.01107223,90316.0,90311.0,0.01107284]
[1767413367972,0.01107235,90315.0,90310.0,0.01107297]
[1767413368400,0.01107235,90315.0,90311.0,0.01107284]
[1767413368634,0.01107235,90315.0,90309.0,0.06074941]
[1767413368791,0.01107223,90316.0,90311.0,0.01107284]
[1767413369383,0.01107235,90315.0,90310.0,0.01107297]
[1767413369617,0.01107223,90316.0,90311.0,0.01107284]
[1767413370229,0.01107211,90317.0,90311.0,0.01107284]
[1767413370429,0.01107211,90317.0,90312.0,0.01107272]
[1767413371023,0.06643242,90318.0,90312.0,0.01107272]
[1767413371834,0.01107211,90317.0,90312.0,0.01107272]
[1767413373281,0.01107223,90316.0,90311.0,0.05635211]
[1767413374334,0.01107235,90315.0,90311.0,0.04527927]
[1767413374689,0.01107223,90316.0,90311.0,0.04527927]
[1767413374690,0.01107223,90316.0,90311.0,0.05635211]
[1767413374899,0.01107211,90317.0,90311.0,0.05635211]
[1767413375098,0.01107211,90317.0,90312.0,0.01107272]
[1767413375517,0.01107333,90307.0,90305.0,0.01108]
[1767413375700,0.01107297,90310.0,90305.0,0.01108]
[1767413375903,0.01107309,90309.0,90305.0,0.05635927]
[1767413376074,0.01107284,90311.0,90306.0,0.01107346]
[1767413376274,0.01107297,90310.0,90306.0,0.01107346]
[1767413376479,0.01107284,90311.0,90305.0,0.06743285]
[1767413376915,0.01107284,90311.0,90306.0,0.01107346]
[1767413376916,0.01107297,90310.0,90306.0,0.01107346]
[1767413377116,0.01107284,90311.0,90306.0,0.01107346]
[1767413377405,0.01107297,90310.0,90306.0,0.01107346]
[1767413377620,0.01107297,90310.0,90305.0,0.06743285]
[1767413377821,0.01107248,90314.0,90309.0,0.01107309]
[1767413377984,0.01107248,90314.0,90308.0,0.01107321]
[1767413378189,0.01107272,90312.0,90307.0,0.0563526]
[1767413378390,0.01107248,90314.0,90309.0,0.01107309]
[1767413378601,0.0110726,90313.0,90308.0,0.01107321]
[1767413379372,0.01107272,90312.0,90307.0,0.0563526]
[1767413380563,0.01107297,90310.0,90305.0,0.01107358]
[1767413380706,0.0110726,90313.0,90306.0,0.01107346]
[1767413380909,0.01107272,90312.0,90306.0,0.01107346]
[1767413381270,0.01107284,90311.0,90306.0,0.01107346]
[1767413381815,0.01107272,90312.0,90306.0,0.01107346]
[1767413382233,0.01107272,90312.0,90307.0,0.01107333]
[1767413382646,0.01107235,90315.0,90307.0,0.01107333]
[1767413383739,0.0110726,90313.0,90308.0,0.01107321]
[1767413383932,0.01107248,90314.0,90308.0,0.0664391]
[1767413384287,0.0110726,90313.0,90308.0,0.01107321]
[1767413384608,0.01107248,90314.0,90308.0,0.01107321]
[1767413385132,0.0110726,90313.0,90308.0,0.01107321]
[1767413385535,0.01107248,90314.0,90309.0,0.01107309]
[1767413385749,0.0110726,90313.0,90308.0,0.01107321]
[1767413385897,0.01107272,90312.0,90307.0,0.01107333]
[1767413386280,0.01107284,90311.0,90306.0,0.01107346]
[1767413386480,0.01107272,90312.0,90307.0,0.01107333]
[1767413386718,0.01107284,90311.0,90307.0,0.01107333]
[1767413387128,0.06643527,90314.0,90307.0,0.01107333]
[1767413387441,0.01107272,90312.0,90307.0,0.01107333]
[1767413388192,0.01107272,90312.0,90308.0,0.01107321]
[1767413388507,0.0110726,90313.0,90308.0,0.01107321]
[1767413389124,0.01107248,90314.0,90309.0,0.01107309]
[1767413390491,0.0110726,90313.0,90308.0,0.01107321]
[1767413390699,0.0110726,90313.0,90309.0,0.01107309]
[1767413391065,0.0110726,90313.0,90308.0,0.01107321]
[1767413392117,0.01107235,90315.0,90308.0,0.06643905]
[1767413392311,0.01107248,90314.0,90309.0,0.01107309]
[1767413392478,0.0110726,90313.0,90308.0,0.01107321]
[1767413392857,0.06643449,90315.0,90308.0,0.01107321]
[1767413393255,0.01107248,90314.0,90308.0,0.01107321]
[1767413395133,0.01107248,90314.0,90309.0,0.01107309]
[1767413395438,0.01107235,90315.0,90310.0,0.01107297]
[1767413395626,0.01107248,90314.0,90307.0,0.06643966]
[1767413395826,0.05536153,90316.0,90308.0,0.01107321]
[1767413396177,0.01107235,90315.0,90310.0,0.01107297]
[1767413396370,0.01107223,90316.0,90311.0,0.01107284]
[1767413396574,0.01107235,90315.0,90310.0,0.01107297]
[1767413396725,0.05536139,90316.0,90309.0,0.01107309]
[1767413397124,0.01107248,90314.0,90308.0,0.06643888]
[1767413397344,0.01107248,90314.0,90309.0,0.01107309]
[1767413399366,0.01107223,90316.0,90311.0,0.01107284]
[1767413399763,0.01107235,90315.0,90310.0,0.01107297]
[1767413400065,0.01107235,90315.0,90311.0,0.01107284]
[1767413400383,0.01107235,90315.0,90309.0,0.01107309]
[1767413400781,0.01107235,90315.0,90308.0,0.01107321]
[1767413400997,0.01107235,90315.0,90120.0,0.05861391]
[1767413400998,0.000999,90308.0,90291.0,0.23257917]
[1767413401201,0.000999,90308.0,90292.0,0.06897792]
[1767413401202,0.01107444,90298.0,90292.0,0.06897792]
[1767413401441,0.01107456,90297.0,90294.0,0.04682275]
[1767413401648,0.01107456,90297.0,90287.0,1e-08]
[1767413401649,0.01107542,90290.0,90287.0,1e-08]
[1767413401802,0.01107493,90294.0,90287.0,1e-08]
[1767413401803,0.01107505,90293.0,90287.0,1e-08]
[1767413402146,0.01107517,90292.0,90287.0,0.01108]
[1767413402342,6.764e-05,90292.0,90287.0,0.02215579]
[1767413402486,6.764e-05,90292.0,90289.0,0.01107554]
[1767413402702,0.22147674,90303.0,90289.0,0.01107554]
[1767413402703,0.01107456,90297.0,90290.0,0.05537711]
[1767413402970,0.01107456,90297.0,90296.0,0.11960861]
[1767413403178,0.01107297,90310.0,90301.0,0.01107407]
[1767413403451,0.01108,90315.0,90308.0,0.01107321]
[1767413403613,0.01108,90315.0,90314.0,0.11960861]
[1767413403805,0.01108,90315.0,90314.0,0.11860961]
[1767413406952,0.01108,90315.0,90314.0,0.10037619]
[1767413407950,0.01107272,90312.0,90309.0,0.04682275]
[1767413408149,0.01107272,90312.0,90311.0,0.11960861]
[1767413410535,0.06643488,90314.0,90311.0,0.11960861]
[1767413411287,0.02215235,90315.0,90311.0,0.11960861]
[1767413411688,0.02215235,90315.0,90311.0,0.16643136]
[1767413411894,0.01108,90315.0,90312.0,0.04682275]
[1767413412594,0.02215235,90315.0,90312.0,0.04682275]
[1767413416524,0.05536282,90314.0,90312.0,0.04682275]
[1767413416713,0.05536282,90314.0,90311.0,0.11960861]
[1767413416918,0.0664353,90314.0,90311.0,0.11960861]
[1767413417358,0.05536351,90313.0,90311.0,0.11960861]
[1767413419883,0.01107248,90314.0,90311.0,0.11960861]
[1767413421637,0.05536301,90313.0,90311.0,0.11960861]
[1767413422067,0.06643802,90310.0,90307.0,0.04682275]
[1767413422665,0.01107297,90310.0,90307.0,0.04682275]
[1767413423276,0.01107407,90301.0,90297.0,0.00066443]
[1767413423475,0.01107395,90302.0,90301.0,0.000999]
[1767413423870,0.01107407,90301.0,90297.0,0.04682275]
[1767413424172,0.06644284,90304.0,90299.0,0.04682275]
[1767413424367,0.0110737,90304.0,90301.0,0.04682275]
[1767413424572,0.0664406,90307.0,90304.0,0.000999]
[1767413424789,0.02215321,90308.0,90304.0,0.000999]
[1767413424971,0.01108,90308.0,90303.0,0.01107382]
[1767413425423,0.01108,90308.0,90303.0,0.05789657]
[1767413425632,0.01107333,90307.0,90303.0,0.04682275]
[1767413425777,0.01007433,90307.0,90303.0,0.04682275]
[1767413426679,0.02215321,90308.0,90303.0,0.04682275]
[1767413426889,0.01108,90308.0,90303.0,0.05789657]
[1767413427096,0.02215321,90308.0,90304.0,0.04682275]
[1767413427293,0.01108,90308.0,90304.0,0.04682275]
[1767413428065,0.01108,90308.0,90305.0,0.01107358]
[1767413428413,0.01108,90308.0,90305.0,0.04699647]
[1767413428830,0.02215321,90308.0,90305.0,0.04699647]
[1767413429262,0.02215321,90308.0,90299.0,0.05537109]
[1767413429263,0.06644296,90303.0,90297.0,0.04699647]
[1767413429467,0.01107395,90302.0,90297.0,0.05807103]
[1767413429673,0.01107395,90302.0,90297.0,0.04699647]
[1767413430475,0.01107419,90300.0,90297.0,0.04599747]
[1767413430825,0.01108,90308.0,90292.0,0.04636746]
[1767413430946,0.01107456,90297.0,90292.0,0.05744263]
[1767413431153,0.01107456,90297.0,90292.0,0.04636746]
[1767413431541,0.01107456,90297.0,90292.0,0.05744263]
[1767413432133,0.01107431,90299.0,90293.0,0.01107505]
[1767413432569,0.01107468,90296.0,90292.0,0.04636746]
[1767413433623,0.01107456,90297.0,90292.0,0.04636746]
[1767413433829,0.01107444,90298.0,90293.0,0.04636746]
[1767413434080,0.01107431,90299.0,90293.0,0.04636746]
[1767413434300,0.01107456,90297.0,90293.0,0.04636746]
[1767413435170,0.01107481,90295.0,90290.0,0.0464754]
[1767413435423,0.01107505,90293.0,90290.0,0.0464754]
[1767413435619,0.01107493,90294.0,90290.0,0.0464754]
[1767413436030,0.01107468,90296.0,90290.0,0.05755082]
[1767413436235,0.01107456,90297.0,90291.0,0.05744276]
[1767413436448,0.01107468,90296.0,90291.0,0.04636746]
[1767413437574,0.01107456,90297.0,90291.0,0.04636746]
[1767413438116,0.01107468,90296.0,90291.0,0.04636746]
[1767413438297,0.01107431,90299.0,90296.0,0.000999]
[1767413438927,0.01107456,90297.0,90293.0,0.04636746]
[1767413439668,0.01107468,90296.0,90293.0,0.04636746]
[1767413440267,0.01107444,90298.0,90293.0,0.04636746]
[1767413440471,0.01107456,90297.0,90293.0,0.04636746]
[1767413440609,0.01107468,90296.0,90293.0,0.04636746]
[1767413440813,0.01107444,90298.0,90293.0,0.04636746]
[1767413441031,0.01107456,90297.0,90293.0,0.04636746]
[1767413441231,0.01107382,90303.0,90298.0,0.01107444]
[1767413441453,0.01107395,90302.0,90298.0,0.04636746]
[1767413442079,0.01107382,90303.0,90302.0,0.000999]
[1767413442449,0.01107395,90302.0,90298.0,0.04636746]
[1767413442904,0.01107382,90303.0,90298.0,0.04636746]
[1767413443407,0.01107382,90303.0,90298.0,0.0574419]
[1767413443708,0.01107395,90302.0,90298.0,0.04636746]
[1767413444658,0.0110737,90304.0,90298.0,0.04636746]
[1767413445674,0.01107382,90303.0,90298.0,0.0574419]
[1767413446301,0.0110737,90304.0,90298.0,0.0574419]
[1767413446503,0.01107382,90303.0,90298.0,0.0574419]
[1767413446680,0.01094858,90303.0,90298.0,0.0574419]
[1767413447026,0.0110737,90304.0,90298.0,0.0574419]
[1767413447205,0.06644209,90305.0,90299.0,0.01107431]
[1767413447529,0.0110737,90304.0,90298.0,0.0574419]
[1767413448023,0.06644209,90305.0,90300.0,0.01107419]
[1767413448243,0.06644209,90305.0,90299.0,0.01107431]
[1767413448244,0.01107346,90306.0,90299.0,0.01107431]
[1767413448442,0.01107358,90305.0,90300.0,0.01107419]
[1767413448776,0.01107358,90305.0,90299.0,0.01107431]
[1767413449020,0.0110737,90304.0,90299.0,0.01107431]
[1767413449927,0.01107358,90305.0,90300.0,0.01107419]
[1767413450133,0.01107358,90305.0,90299.0,0.01107431]
[1767413450341,0.01107358,90305.0,90300.0,0.01107419]
[1767413450565,0.0110737,90304.0,90298.0,0.0574419]
[1767413450760,0.0110737,90304.0,90299.0,0.01107431]
[1767413450944,0.01107358,90305.0,90299.0,0.01107431]
[1767413451144,0.01107358,90305.0,90300.0,0.01107419]
[1767413451319,0.01107358,90305.0,90299.0,0.01107431]
[1767413451320,0.0110737,90304.0,90299.0,0.01107431]
[1767413452175,0.0110737,90304.0,90298.0,0.0574419]
[1767413452667,0.01107358,90305.0,90299.0,0.01107431]
[1767413453265,0.0110737,90304.0,90299.0,0.01107431]
[1767413453435,0.01107382,90303.0,90298.0,0.0574419]
[1767413454225,0.0110737,90304.0,90299.0,0.01107431]
[1767413454427,0.0110737,90304.0,90298.0,0.0574419]
[1767413455486,0.01107358,90305.0,90300.0,0.01107419]
[1767413455664,0.01107444,90298.0,90284.0,0.22152304]
[1767413455866,0.01107505,90293.0,90285.0,0.01107603]
[1767413456030,0.01107505,90293.0,90286.0,0.01107591]
[1767413456438,0.01107505,90293.0,90290.0,9.4e-07]
[1767413457337,0.06645033,90293.0,90290.0,9.4e-07]
[1767413458806,0.06645033,90293.0,90290.0,0.0463684]
[1767413459212,0.0553765,90292.0,90290.0,9.4e-07]
[1767413464235,0.01107505,90293.0,90290.0,9.4e-07]
[1767413464484,0.05537589,90292.0,90290.0,9.4e-07]
[1767413464883,0.01107505,90293.0,90292.0,0.000107]
[1767413465237,0.01107505,90293.0,90290.0,9.4e-07]
[1767413465830,0.01096805,90293.0,90290.0,9.4e-07]
[1767413466277,0.06634382,90293.0,90290.0,9.4e-07]
[1767413466480,0.0553765,90291.0,90290.0,9.4e-07]
[1767413467116,0.06634382,90293.0,90290.0,9.4e-07]
[1767413468618,0.01096805,90293.0,90290.0,9.4e-07]
[1767413468763,0.01107493,90294.0,90290.0,9.4e-07]
[1767413468962,0.01107505,90293.0,90290.0,9.4e-07]
[1767413470086,0.01107493,90294.0,90290.0,9.4e-07]
[1767413470286,0.01107505,90293.0,90290.0,9.4e-07]
[1767413472766,0.0553765,90291.0,90290.0,9.4e-07]
[1767413474260,0.06645082,90293.0,90290.0,9.4e-07]
[1767413475245,0.0553765,90291.0,90290.0,9.4e-07]
[1767413475847,0.06645082,90293.0,90290.0,9.4e-07]
[1767413477472,0.0553765,90291.0,90290.0,9.4e-07]
[1767413482141,0.05538263,90281.0,90280.0,1e-08]
[1767413484824,0.05538245,90282.0,90280.0,1e-08]
[1767413484993,0.05538245,90282.0,90278.0,0.00044034]
[1767413484994,0.05538386,90279.0,90278.0,1e-08]
[1767413485778,0.05538325,90280.0,90278.0,1e-08]
[1767413488830,0.06645964,90281.0,90278.0,1e-08]
[1767413489312,0.13829695,90360.0,90278.0,0.01107689]
[1767413489313,0.01107615,90284.0,90278.0,0.01107689]
[1767413489630,0.01107628,90283.0,90278.0,0.01107689]
[1767413489890,0.01107628,90283.0,90278.0,0.05939627]
[1767413490035,0.0110764,90282.0,90278.0,0.04831938]
[1767413490237,0.01107628,90283.0,90278.0,0.04831938]
[1767413490863,0.01107628,90283.0,90278.0,0.05939627]
[1767413491291,0.01107628,90283.0,90278.0,0.04831938]
[1767413491451,0.01107628,90283.0,90278.0,0.05939627]
[1767413491658,0.0110764,90282.0,90278.0,0.04831938]
[1767413492430,0.0110764,90282.0,90278.0,0.05939627]
[1767413492737,0.01107456,90297.0,90289.0,0.04831938]
[1767413492942,0.01107456,90297.0,90286.0,0.05537914]
[1767413492943,0.01107493,90294.0,90291.0,0.04831938]
[1767413493125,0.02215456,90297.0,90292.0,0.04831938]
[1767413493326,0.01108,90297.0,90292.0,0.04831938]
[1767413493527,0.02215431,90299.0,90293.0,0.05939443]
[1767413493686,0.01107419,90300.0,90294.0,0.01107493]
[1767413493887,0.01108,90299.0,90294.0,0.01107493]
[1767413494109,0.02215431,90299.0,90293.0,0.04831938]
[1767413494433,0.01107456,90297.0,90291.0,0.0110753]
[1767413494727,0.01107468,90296.0,90290.0,0.01107542]
[1767413495074,0.01107431,90299.0,90293.0,0.01107505]
[1767413495535,0.01,90297.0,90293.0,0.01107505]
[1767413496173,0.01,90297.0,90292.0,0.04831938]
[1767413496346,0.000999,90293.0,90292.0,0.05939455]
[1767413496549,0.01,90297.0,90292.0,0.05939455]
[1767413496744,0.02107456,90297.0,90292.0,0.05939455]
[1767413497563,0.000999,90292.0,90291.0,0.0110753]
[1767413497764,0.01107468,90296.0,90291.0,0.0110753]
[1767413498090,0.02107456,90297.0,90292.0,0.01107517]
[1767413498261,0.02107456,90297.0,90293.0,0.05939443]
[1767413498262,0.01,90297.0,90293.0,0.05939443]
[1767413498586,0.02107456,90297.0,90293.0,0.04831938]
[1767413499511,0.01107468,90296.0,90293.0,0.04831938]
[1767413499943,0.01107468,90296.0,90291.0,0.0110753]
[1767413499944,0.01107468,90296.0,90291.0,0.05939468]
[1767413500542,0.01107481,90295.0,90291.0,0.04831938]
[1767413501704,0.01107481,90295.0,90290.0,0.01107542]
[1767413502179,0.01107493,90294.0,90290.0,0.04831938]
[1767413502315,0.01107493,90294.0,90290.0,0.04867845]
[1767413502651,0.00063993,90290.0,90288.0,0.01107566]
[1767413503054,0.01107493,90294.0,90289.0,0.01107554]
[1767413503448,0.01107505,90293.0,90288.0,0.01107566]
[1767413504015,0.01107517,90292.0,90285.0,0.07047541]
[1767413504264,0.01107517,90292.0,90287.0,0.01107579]
[1767413504441,0.01107505,90293.0,90288.0,0.01107566]
[1767413505221,0.01107505,90293.0,89610.0,0.025]
[1767413505222,7.29e-05,90288.0,90283.0,0.01107628]
[1767413505476,0.00043265,90288.0,90284.0,0.01107615]
[1767413505636,0.00035975,90288.0,90285.0,0.011032]
[1767413507031,0.00035975,90288.0,90284.0,0.01107615]
[1767413508054,0.01143541,90288.0,90283.0,0.01107628]
[1767413508394,0.01143541,90288.0,90284.0,0.01107615]
[1767413508395,0.00035975,90288.0,90284.0,0.01107615]
[1767413508772,0.01143541,90288.0,90284.0,0.01107615]
[1767413509116,0.01143541,90288.0,90283.0,0.01107628]
[1767413509322,0.01107579,90287.0,90282.0,0.01108]
[1767413509731,0.01107591,90286.0,90282.0,0.01108]
[1767413509932,0.01143541,90288.0,90286.0,0.000927]
[1767413510137,7.2e-05,90282.0,90277.0,0.00035598]